Cogmind - Beta 9.6 @@@ ROGUE MODE // 2020.06.02 @ 18:50:16 Player: pGoos Result: Destroyed by as-37164 with Assembled Blade Performance ------------- Evolutions (0) 0 Regions Visited (2) 400 Robots Destroyed (10) 50 Value Destroyed (131) 131 Prototype IDs (0) 0 Alien Tech Used (0) 0 Bonus (0) 0 TOTAL SCORE: 581 Bonus ------- None Cogmind --------- Core Integrity 0/250 Matter 300/300 Energy 325/325 System Corruption 1% Temperature Cool (0) Movement Treading (160) Location -10/Mines Parts ------- > --- POWER (1) -------- Light Ion Engine > --- PROPULSION (2) --- Light Treads > --- UTILITY (2) ------ Small Storage Unit Medium Battery > --- WEAPON (2) ------- Mace > --- INVENTORY (6) ---- Ion Engine Light Assault Rifle Mining Laser Mace Peak State ------------ > --- POWER ------------ Ion Engine > --- PROPULSION ------- Light Treads Light Treads > --- UTILITY ---------- Small Storage Unit Medium Battery > --- WEAPON ----------- Mining Laser Mining Laser > --- INVENTORY -------- Ion Engine Wheel Compact Wheel Mining Laser [Rating: 7] Favorites ----------- Power Light Ion Engine Engine Light Ion Engine Propulsion Light Treads Treads Light Treads Wheel Wheel Utility Small Storage Unit Storage Small Storage Unit Weapon Mining Laser Energy Gun Medium Laser Ballistic Gun Light Assault Rifle Special Weapon Mining Laser Impact Weapon Mace Build | -11 -10 -10 ------- Run | Scr Mat Min Slots Evolved . | . . . Power . | . . . Propulsion . | . . . Utility . | . . . Weapon . | . . . Parts Attached 23 | 6 16 1 Power 3 | 1 2 . Engine 3 | 1 2 . Core . | . . . Reactor . | . . . Propulsion 5 | 2 3 . Treads 3 | . 3 . Leg . | . . . Wheel 2 | 2 . . Hover . | . . . Flight . | . . . Utility 2 | 1 1 . Device . | . . . Storage 2 | 1 1 . Processor . | . . . Hackware . | . . . Protection . | . . . Artifact . | . . . Weapon 13 | 2 10 1 Energy Gun 6 | 2 4 . Energy Cannon . | . . . Ballistic Gun 2 | . 2 . Ballistic Cannon . | . . . Launcher . | . . . Special Weapon 4 | . 4 . Impact Weapon 1 | . . 1 Slashing Weapon . | . . . Piercing Weapon . | . . . Special Melee Weapon . | . . . Unidentified Prototypes . | . . . Parts Lost 8 | . 6 2 Power 1 | . 1 . Propulsion 2 | . 2 . Utility . | . . . Weapon 5 | . 3 2 Highest Loss Streak 4 | . 4 2 Average Slot Usage (%) 72 | . 70 82 Engine 13 | . 13 14 Treads 9 | . 8 14 Storage 23 | . 22 28 Energy Gun 13 | . 16 . Ballistic Gun 1 | . 1 . Special Weapon 9 | . 6 24 Naked Turns . | . . . Heaviest Build 15 | 10 15 11 Greatest Support 40 | 26 40 20 Greatest Overweight (x) 4 | 2 4 . Average Overweight (x) 1 | . 2 . Largest Inventory Capacity 6 | 6 6 6 Average Capacity 5 | 5 6 6 Most Carried 6 | 4 6 5 Average Carried 5 | 2 5 4 Final Capacity 6 | 6 6 6 Final Carried 5 | 4 5 4 Class Distribution -------------------- 100% | Mutant Dominant Class ---------------- Mutant | -10/Materials Mutant | -10/Mines Resources | -11 -10 -10 ----------- Run | Scr Mat Min Matter Collected 406 | 205 163 38 Remotely . | . . . Salvage Created 193 | . 193 . Parts 21 | . 21 . Haulers Intercepted 1 | . 1 . Recyclers Shooed . | . . . Parts Field Recycled . | . . . Retrieved Matter . | . . . Parts Self-Destructed . | . . . Prevented . | . . . Kills | -11 -10 -10 ------- Run | Scr Mat Min Combat Hostiles Destroyed 8 | . 8 . Melee 5 | . 5 . Guns 3 | . 3 . Classes Destroyed 4 | . 4 . Worker 1 | . 1 . Hauler 1 | . 1 . Swarmer 6 | . 6 . Grunt 2 | . 2 . Best Kill Streak 4 | . 4 . Combat Bots Only 4 | . 4 . Max Kills in Single Turn 1 | . 1 . Gunslinging . | . . . Exploded . | . . . Melee 1 | . 1 . Uniques/NPCs Destroyed . | . . . Combat | -11 -10 -10 -------- Run | Scr Mat Min Damage Taken 1037 | . 817 220 Core 279 | . 232 47 Absorbed by Shields . | . . . Core Remaining (%) 100 | 100 . . Volleys Fired 19 | . 18 1 Largest 2 | . 2 2 Hottest 200 | . 200 200 Shots Fired 29 | . 27 2 Gun 24 | . 24 . Cannon . | . . . Launcher . | . . . Special 5 | . 3 2 Kinetic 1 | . 1 . Thermal 24 | . 22 2 Explosive . | . . . Electromagnetic 4 | . 4 . Robot Hit Streak 10 | . 10 . Robot Miss Streak 2 | . 2 2 Penetration Max . | . . . Secondary Targets . | . . . Shots Hit Robots 22 | . 21 1 Core Hits 19 | . 18 1 Critical Hits . | . . . Critical Kills . | . . . Critical Parts Destroyed . | . . . Melee Attacks 1 | . . 1 Impact 1 | . . 1 Slashing . | . . . Piercing . | . . . Sneak Attacks . | . . . Combat Hostiles . | . . . Follow-up Attacks . | . . . Damage Inflicted 307 | . 288 19 Guns 212 | . 212 . Cannons . | . . . Explosions . | . . . Melee 18 | . . 18 Ramming 53 | . 52 1 Kinetic 10 | . 10 . Thermal 173 | . 173 . Explosive . | . . . Electromagnetic 53 | . 53 . Impact 18 | . . 18 Slashing . | . . . Piercing . | . . . Highest Corruption 1 | . 1 1 Average Corruption 1 | . 1 1 Corruption Purged . | . . . Effects 1 | . 1 . Message Errors 1 | . 1 . Overload Shots . | . . . Overflow Damage 4 | . 4 . Projectiles 4 | . 4 . Explosions . | . . . Melee . | . . . Knockbacks . | . . . Impact . | . . . Kinetic . | . . . Secondary . | . . . Self-Inflicted Damage 7 | . 7 . Shots . | . . . Rammed 26 | . 24 2 Targets Rammed 31 | . 29 2 Kicked . | . . . Crushed 5 | . 5 . Highest Temperature 288 | . 288 56 Average Temperature 118 | . 132 30 Received Heat Transfer 96 | . 96 . Effects 2 | . 2 . Interference 2 | . 2 . Siege Activations . | . . . Robots Corrupted . | . . . Combat Hostiles . | . . . Parts Fried . | . . . Impact Corruptions . | . . . Robots Melted . | . . . Combat Hostiles . | . . . Parts Melted . | . . . Heat Transferred 447 | . 447 . Parts Sabotaged . | . . . Parts Stolen . | . . . Parts Stripped . | . . . Power Chain Reactions . | . . . Missiles Intercepted . | . . . Alert | -11 -10 -10 ------- Run | Scr Mat Min Peak Influence 130 | . 130 65 Average Influence 52 | . 58 47 Maximum Alert Level . | . . . Low Security (%) 100 | 100 100 100 Level 1 . | . . . Level 2 . | . . . Level 3 . | . . . Level 4 . | . . . Level 5 . | . . . High Security . | . . . Max Security . | . . . Squads Dispatched 3 | . 3 . Investigation 1 | . 1 . Extermination . | . . . Reinforcement 2 | . 2 . Assault . | . . . Garrison . | . . . Intercept . | . . . Construction Impeded . | . . . Haulers Reinforced . | . . . Stealth | -11 -10 -10 --------- Run | Scr Mat Min Distress Signals . | . . . Communications Jammed . | . . . Distress Signals . | . . . Times Spotted 24 | . 15 9 Peak Tracking Total 12 | . 6 12 Tactical Retreats . | . . . Traps | -11 -10 -10 ------- Run | Scr Mat Min Traps Triggered 2 | . 2 . Indirectly . | . . . Trap Hack Attempts . | . . . Triggered . | . . . Disarmed . | . . . Reprogrammed . | . . . Reused . | . . . Traps Extracted . | . . . Installed . | . . . Triggered . | . . . Machines | -11 -10 -10 ---------- Run | Scr Mat Min Machines Disabled . | . . . Max in Single Turn . | . . . Machines Sabotaged . | . . . Garrisons Compromised . | . . . Overloaded Fab Kills . | . . . Fab Network Shutdowns . | . . . Hacking | -11 -10 -10 --------- Run | Scr Mat Min Machines Accessed 2 | . 2 . Terminals 1 | . 1 . Fabricators . | . . . Repair Stations . | . . . Recycling Units 1 | . 1 . Scanalyzers . | . . . Garrison Access . | . . . Total Hacks 5 | . 5 . Successful 2 | . 2 . Failed 3 | . 3 . Catastrophic 1 | . 1 . Database Lockouts . | . . . Manual . | . . . Terminals 3 | . 3 . Fabricators . | . . . Repair Stations . | . . . Recycling Units 2 | . 2 . Scanalyzers . | . . . Garrison Access . | . . . Terminal Hacks 2 | . 2 . Unreport Threat 1 | . 1 . Recall Investigation 1 | . 1 . Fabricator Hacks . | . . . Repair Station Hacks . | . . . Recycling Unit Hacks . | . . . Scanalyzer . | . . . Garrison Access Hacks . | . . . Unauthorized Hacks . | . . . Terminals . | . . . Fabricators . | . . . Repair Stations . | . . . Recycling Units . | . . . Scanalyzers . | . . . Garrison Access . | . . . Data Cores Recovered . | . . . Used . | . . . Hacking Detections 2 | . 2 . Full Trace Events . | . . . Feedback Events . | . . . Feedback Blocked . | . . . Robot Schematics Acquired . | . . . Robots Built . | . . . Matter . | . . . Time . | . . . Total Robot Build Rating . | . . . Part Schematics Acquired . | . . . Parts Built . | . . . Matter . | . . . Time . | . . . Total Part Build Rating . | . . . Parts Repaired . | . . . Time . | . . . Parts Recycled . | . . . Recycled Matter . | . . . Retrieved Matter . | . . . Retrieved Components . | . . . Parts Scanalyzed . | . . . Part Schematics Acquired . | . . . Parts Damaged . | . . . Bothacking | -11 -10 -10 ------------ Run | Scr Mat Min Used RIF Installer . | . . . Robots Hacked . | . . . Non-combat . | . . . Combat . | . . . Robot Hacks Applied . | . . . Relay Couplers Released . | . . . Robots Rewired . | . . . Allies Hacked . | . . . Hacks Repelled . | . . . Allies | -11 -10 -10 -------- Run | Scr Mat Min Total Allies 3 | . . 3 Largest Group 3 | . . 3 Highest-Rated Group 40 | . . 40 Highest-Rated Ally 16 | . . 16 Total Orders . | . . . Ally Attacks 5 | . . 5 Total Damage 43 | . . 43 Kills . | . . . Allies Corrupted . | . . . Allies Melted . | . . . Intel | -11 -10 -10 ------- Run | Scr Mat Min Robot Analysis Total . | . . . Derelict Logs Recovered . | . . . Drone Launches . | . . . Drone Recoveries . | . . . Exploration | -11 -10 -10 ------------- Run | Scr Mat Min Turns Passed 880 | 67 674 139 Spaces Moved 422 | 61 283 78 Core 185 | 8 177 . Treads 175 | . 97 78 Legs . | . . . Wheels 62 | 53 9 . Hover . | . . . Flight . | . . . Fastest Speed 50 | 50 90 160 Average Speed 170 | 89 191 160 Slowest Speed 250 | 150 250 160 Overloaded Moves . | . . . Propulsion Burnouts . | . . . Robots Hopped . | . . . Cave-ins Triggered . | . . . Exploration Rate (%) 19 | 4 39 14 Regions Visited 2 Branch Regions 1 Pre-discovered Areas . | . . . Known Exits Taken . | . . . Unknown Exits Taken 2 | 1 1 . Scrap Searched 1 | . . 1 Spaces Dug . | . . . Terrain Destroyed 4 | . 2 2 Melee . | . . . Projectile 4 | . 2 2 AOE . | . . . Actions | -11 -10 -10 --------- Run | Scr Mat Min Total 521 | 70 368 83 Wait 7 | . 7 . Move 420 | 60 282 78 Hop . | . . . Pick Up 8 | 4 4 . Fast Attach 17 | 6 11 . Attach 4 | . 3 1 Detach 3 | . 3 . Swap 2 | . 2 . Drop 9 | . 9 . Fire 19 | . 18 1 Melee 1 | . . 1 Ram 8 | . 8 . Kick . | . . . Crush 23 | . 21 2 Escape Stasis . | . . . Rewire . | . . . Trap . | . . . Miscellaneous . | . . . Route ------- -11/Scrapyard -10/Materials -10/Mines History --------- Turn | Location | Event 22 | -11/Scrapyard | Discovered new exit (range 13) 68 | -11/Scrapyard | Entered Materials 326 | -10/Materials | Discovered new exit (range 12) 352 | -10/Materials | Build established: Mutant 480 | -10/Materials | Core integrity fell below 50% 532 | -10/Materials | Core integrity fell below 20% 558 | -10/Materials | Lost 4 parts (1p2n1w) 742 | -10/Materials | Entered Mines 747 | -10/Mines | Assisted by bots powering up and referring to "LRC-V3" 844 | -10/Mines | Assembled infested the area 881 | -10/Mines | Destroyed by as-37164 with Assembled Blade Last Messages --------------- GOAL=ESCAPE 00747_ Trooper 1a: "Hello LRC-V3. What is your command?" 00747_ Mercenary 1a: "Hello LRC-V3. What is your command?" 00747_ Trooper 1b: "Hello LRC-V3. What is your command?" 00773_ Searching scrap... 00773_ Found 34 Matter. 00773_ Found 38 Matter. 00773_ Found Med. Laser. 00773_ Found Sml. Battery. 00774_ Acquired 28 matter. 00774_ K-01 Serf collects debris. 00779_ K-01 Serf cleans the Plasma Injector. 00844_ ALERT: Infestation in the mines, dispatching Demolisher response squad. 00865_ Mining Laser destroyed. 00870_ Mercenary 1a destroyed. 00870_ Trooper 1b destroyed. 00873_ Slammed into as-25809. 00877_ Acquired 4 matter. 00877_ Trooper 1a destroyed. 00878_ Acquired 6 matter. Map ----- +----------------------------------------------------+ | ?????????????????????????????????????????????? | | ?????????????????????????????????????????????? | | ??????????#####??????????????????????????????? | | ??????????# #??????????????????????????????? | | ??????????# ####???????????????????????????? | | ??????????# # ##??????????????????????????? | | ??????????# #??????????????????????????? | | ?????????## #??????????????????????????? | | ????????## #??????????????????????????? | | ????????# #??????????????????????????? | | ????????# ##??????????????????????????? | | ???????## ##???????????????????????????? | | ??###### ##????????????????????????????? | | ?## #?????????????????????????????? | | ?# #?????????????????????????????? | | ?# ####### #?????????????????????????????? | | ?# ??????# ############???????????????????? | | ?# #??????# #?# #???????????????????? | | ?# ######## ### """ #???????????????????? | | ?# ! """ #???????????????????? | | ?# %%[ """ #???????????????????? | | ?# ############ #???????????????????? | | ?# #??????????# #???????????????????? | | ?# #??????????# #???????????????????? | | ?## ##??????????##### ####???????????????????? | | ??###???????????????#@#??????????????????????? | | ????????????????????#a##?????????????????????? | | ????????????????????#aa#### ????????? | | ????????????????????#=a![ ????????? | | ????????????????????##;#### % #??????????? | | ?????????????????????###?????? #?????????????? | | ?????????????????????????????????????????????? | | ?????????????????????????????????????????????? | | ?????????????????????????????????????????????? | | ?????????????????????????????????????????????? | | ?????????????????????????????????????????????? | | ?????????????????????????????????????????????? | | ?????????????????????????????????????????????? | | ?????????????????????????????????????????????? | | ?????????????????????????????????????????????? | | ?????????????????????????????????????????????? | | ?????????????????????????????????????????????? | | ?????????????????????????????????????????????? | | ?????????????????????????????????????????????? | | ?????????????????????????????????????????????? | | ?????????????????????????????????????????????? | | ?????????????????????????????????????????????? | | ?????????????????????????????????????????????? | | ?????????????????????????????????????????????? | | ?????????????????????????????????????????????? | +----------------------------------------------------+ Best States ------------- Heat Dissipation 25 Energy Generation 10 Energy Capacity 450 Matter Stores 300 Matter Capacity 300 Sight Range 16 Terrain Scan Density 10 Evasion (%) 42 Recoil Reduction 2 Item Schematics ----------------- None Robot Schematics ------------------ None Fabricated ------------ Nothing Alien Tech Used ----------------- None Achievements -------------- None Challenges ------------ None Game ------ Seed BattleFlightTorch Manual? 0 Play Time 00:12:57 Cumulative 32.6 hours Start 2020.06.02 @ 18:22:50 End 2020.06.02 @ 18:50:16 Sessions 1 Manual Loads 0 Difficulty Rogue Special Mode None Game No. 47 Rogue 47 Adventurer 0 Explorer 0 Win Type - Total 0 Types 0/0/0/0/0/0/0 Lore% 20 Gallery% 28 Achievement% 19 Wizard Run 0 Options --------- ASCII 0 Keyboard 1 Movement Numpad Keybinds 0 Fullscreen 2 Font 24/Terminus Map View 113x50 Tactical HUD 1 Map Filters NONE Filters NONE Steam 1 RUN: a44eb064-275c-468a-be80-aca41c0ac27a